Cogmind - Beta 14 @@@ ROGUE MODE // 2024.09.06 @ 16:44:43 Player: Lunace Result: Destroyed by 43-KJ4(R) with Subdweller Beam Cannon Performance ------------- Evolutions (0) 0 Regions Visited (2) 400 Robots Destroyed (26) 130 Value Destroyed (772) 772 Prototype IDs (0) 0 Alien Tech Used (0) 0 Bonus (25) 25 TOTAL SCORE: 1327 Bonus ------- Follower Combat Kills 25 Cogmind --------- Core Integrity 0/250 Matter 40/300 Energy 100/100 System Corruption 2% Temperature Cool (9) Movement Rolling (110) Location -10/Subcaves Parts ------- > --- POWER (1) -------- Subdweller Power Source > --- PROPULSION (2) --- Subdweller Monowheel Subdweller Monowheel > --- UTILITY (2) ------ Large Storage Unit > --- WEAPON (2) ------- Slug Cannon Slug Cannon > --- INVENTORY (15) --- Subdweller Monowheel Subdweller Monowheel Subdweller Monowheel VTOL Module VTOL Module VTOL Module VTOL Module Disposable Heat Sink Subdweller Laser Subdweller Machine Gun Mini Grenade Launcher Mini Grenade Launcher Makeshift Sword Scrap Shield Fragment (44) Peak State ------------ > --- POWER ------------ Subdweller Power Source > --- PROPULSION ------- Subdweller Monowheel Subdweller Monowheel > --- UTILITY ---------- Large Storage Unit > --- WEAPON ----------- Slug Cannon Slug Cannon > --- INVENTORY -------- Subdweller Monowheel Subdweller Monowheel Subdweller Monowheel VTOL Module VTOL Module VTOL Module VTOL Module Disposable Heat Sink Subdweller Laser Subdweller Machine Gun Mini Grenade Launcher Mini Grenade Launcher Makeshift Sword Scrap Shield Fragment [Rating: 18] Favorites ----------- Power Ion Engine Engine Ion Engine Propulsion Light Treads Treads Light Treads Wheel Subdweller Monowheel Utility Large Storage Unit Device Improved Terrain Scanner Storage Large Storage Unit Protection Light Armor Plating Weapon Medium Laser Energy Gun Medium Laser Energy Cannon Subdweller Beam Cannon Ballistic Gun Light Assault Rifle Ballistic Cannon Slug Cannon Launcher Mini Grenade Launcher Special Weapon Flamer Build | -11 -10 -10 ------- Run | Yrd Mat Sub Slots Evolved . | . . . Power . | . . . Propulsion . | . . . Utility . | . . . Weapon . | . . . Parts Attached 22 | 7 5 10 Power 2 | 1 . 1 Engine 2 | 1 . 1 Core . | . . . Reactor . | . . . Propulsion 5 | 2 . 3 Treads 2 | 2 . . Leg . | . . . Wheel 3 | . . 3 Hover . | . . . Flight . | . . . Utility 4 | 2 2 . Device 1 | 1 . . Storage 2 | 1 1 . Processor . | . . . Hackware . | . . . Protection 1 | . 1 . Artifact . | . . . Weapon 11 | 2 3 6 Energy Gun 3 | 1 1 1 Energy Cannon 1 | . . 1 Ballistic Gun 1 | 1 . . Ballistic Cannon 2 | . . 2 Launcher 2 | . 2 . Special Weapon 2 | . . 2 Impact Weapon . | . . . Slashing Weapon . | . . . Piercing Weapon . | . . . Special Melee Weapon . | . . . Unidentified Prototypes . | . . . Parts Lost 7 | . 1 6 Power 1 | . 1 . Propulsion 3 | . . 3 Utility 1 | . . 1 Weapon 2 | . . 2 Highest Loss Streak 4 | . 1 4 To Critical Strikes . | . . . Average Slot Usage (%) 86 | . 96 81 Engine 7 | . 11 5 Treads 17 | . 28 12 Wheel 9 | . . 13 Device 3 | . 12 . Storage 14 | . 14 14 Protection 5 | . 1 7 Energy Gun 8 | . 17 4 Ballistic Cannon 7 | . . 11 Launcher 3 | . 9 1 Special Weapon 6 | . . 9 Peak Build Rating 18 | 9 11 18 Average Rating 11 | 6 9 12 On Entrance 5 | . 9 8 Naked Turns . | . . . Heaviest Build 40 | 14 26 40 Greatest Support 40 | 40 40 40 Greatest Overweight (x) 1 | . . 1 Average Overweight (x) . | . . . Largest Inventory Capacity 15 | 8 15 15 Average Capacity 12 | 7 8 15 Most Carried 15 | 3 8 15 Average Carried 9 | 2 6 12 Final Capacity 15 | 8 15 15 Final Carried 14 | 3 7 14 Class Distribution -------------------- 81% | Mutant 18% | Derelict-Mutant Dominant Class ---------------- Mutant | -10/Materials Mutant | -10/Subcaves Resources | -11 -10 -10 ----------- Run | Yrd Mat Sub Matter Collected 673 | 279 47 347 Remotely . | . . . Salvage Created 579 | 93 206 280 Parts 32 | 10 11 11 Haulers Intercepted . | . . . Recyclers Shooed 1 | . 1 . Parts Field Recycled . | . . . Retrieved Matter . | . . . Parts Self-Destructed 13 | . . 13 Prevented . | . . . Kills | -11 -10 -10 ------- Run | Yrd Mat Sub Combat Hostiles Destroyed 18 | . 7 11 Guns 3 | . 1 2 Cannons 6 | . . 6 AOE 6 | . 6 . Classes Destroyed 7 | 1 5 1 Tunneler 5 | 5 . . Recycler 1 | . 1 . Operator 1 | . 1 . Watcher 1 | . 1 . Swarmer 3 | . 3 . Grunt 5 | . 4 1 Subdweller 10 | . . 10 Best Kill Streak 7 | 2 7 2 Combat Bots Only 5 | . 5 2 Max Kills in Single Turn 2 | 1 2 1 Gunslinging . | . . . Exploded 2 | . 2 . Melee . | . . . Uniques/NPCs Destroyed . | . . . Combat | -11 -10 -10 -------- Run | Yrd Mat Sub Hostile Shots Fired 73 | . 21 52 Missed 27 | . 7 20 Damage Taken 1057 | . 191 866 Core 253 | . 26 227 Absorbed by Shields . | . . . Core Remaining (%) 100 | 100 . . Volleys Fired 87 | 9 18 60 Largest 2 | 2 2 2 Hottest 200 | 70 100 200 Shots Fired 162 | 18 29 115 Gun 55 | 18 20 17 Cannon 76 | . . 76 Launcher 9 | . 9 . Special 22 | . . 22 Kinetic 77 | 9 . 68 Thermal 76 | 9 20 47 Explosive 9 | . 9 . Electromagnetic . | . . . Robot Hit Streak 18 | 6 4 18 Robot Miss Streak 3 | 1 3 3 Penetration Max . | . . . Secondary Targets . | . . . Shots Hit Robots 86 | 11 12 63 Core Hits 36 | 6 16 14 Critical Kills 1 | . . 1 Critical Parts Destroyed 1 | . . 1 Critical Strikes 7 | 3 . 4 Burn 4 | 3 . 1 Meltdown 1 | . . 1 Destroy 2 | . . 2 Melee Attacks . | . . . Impact . | . . . Slashing . | . . . Piercing . | . . . Sneak Attacks . | . . . Combat Hostiles . | . . . Follow-up Attacks . | . . . Damage Inflicted 2328 | 141 961 1226 Guns 444 | 141 126 177 Cannons 899 | . . 899 Explosions 835 | . 835 . Melee . | . . . Ramming . | . . . Kinetic 730 | 28 . 702 Thermal 763 | 113 126 524 Explosive 774 | . 774 . Electromagnetic 61 | . 61 . Impact . | . . . Slashing . | . . . Piercing . | . . . Highest Corruption 2 | . 2 2 Average Corruption 2 | . 2 2 Corruption Purged . | . . . Corruption Blocked . | . . . Effects 20 | . 5 15 Message Errors 6 | . 1 5 Matter Fused 3 | . 2 1 Heat Flow Errors 1 | . . 1 Energy Discharges 2 | . 2 . Data Loss (minor) 2 | . . 2 Data Loss (major) 2 | . . 2 Misfires 2 | . . 2 Alerts 2 | . . 2 Overload Shots . | . . . Overflow Damage 160 | . 153 7 Projectiles 7 | . . 7 Explosions 153 | . 153 . Melee . | . . . Knockbacks 5 | . . 5 Impact . | . . . Kinetic 5 | . . 5 Secondary . | . . . Self-Inflicted Damage . | . . . Shots . | . . . Rammed . | . . . Targets Rammed . | . . . Kicked . | . . . Crushed . | . . . Highest Temperature 231 | 70 231 228 Average Temperature 54 | 25 80 33 Received Heat Transfer 222 | . 93 129 Siege Activations . | . . . Robots Corrupted . | . . . Combat Hostiles . | . . . Parts Fried 1 | . 1 . Impact Corruptions . | . . . Robots Melted 3 | . . 3 Combat Hostiles 3 | . . 3 Parts Melted 8 | 2 1 5 Heat Transferred 2902 | 555 370 1977 Parts Sabotaged . | . . . Parts Stolen . | . . . Parts Stripped . | . . . Power Chain Reactions . | . . . Alert | -11 -10 -10 ------- Run | Yrd Mat Sub Peak Influence 287 | 25 287 . Initial 16 | . 16 . Average 85 | 13 107 . Maximum Alert Level 1 | . 1 . Low Security (%) 86 | 100 81 . Level 1 13 | . 18 . Level 2 . | . . . Level 3 . | . . . Level 4 . | . . . Level 5 . | . . . High Security . | . . . Max Security . | . . . Squads Dispatched . | . . . Investigation . | . . . Extermination . | . . . Reinforcement . | . . . Assault . | . . . Garrison . | . . . Intercept . | . . . Searches Triggered . | . . . Construction Impeded . | . . . Haulers Reinforced . | . . . Active Scanning Responses . | . . . Cargo Convoy Interrupts . | . . . Stealth | -11 -10 -10 --------- Run | Yrd Mat Sub Distress Signals 1 | . 1 . Communications Jammed . | . . . Distress Signals . | . . . Times Spotted 26 | . 12 14 Peak Tracking Total 3 | . 3 3 Tactical Retreats . | . . . Traps | -11 -10 -10 ------- Run | Yrd Mat Sub Traps Triggered 2 | . 1 1 Indirectly . | . . . Trap Hack Attempts . | . . . Triggered . | . . . Disarmed . | . . . Reprogrammed . | . . . Reused . | . . . Traps Extracted . | . . . Installed . | . . . Triggered 1 | . . 1 Objects Rigged 4 | . 4 . Exploded 2 | . 2 . Machines | -11 -10 -10 ---------- Run | Yrd Mat Sub Machines Disabled 6 | . 6 . Max in Single Turn 2 | . 2 . Machines Repaired . | . . . Machines Dismantled . | . . . Machines Sabotaged . | . . . Overloaded Fab Kills . | . . . Hacking | -11 -10 -10 --------- Run | Yrd Mat Sub Machines Accessed 5 | . 5 . Terminals 4 | . 4 . Fabricators . | . . . Repair Stations . | . . . Recycling Units 1 | . 1 . Scanalyzers . | . . . Garrison Access . | . . . Total Hacks 22 | . 22 . Successful 9 | . 9 . Failed 13 | . 13 . Catastrophic 1 | . 1 . Database Lockouts . | . . . Manual 17 | . 17 . Terminals 21 | . 21 . Fabricators . | . . . Repair Stations . | . . . Recycling Units 1 | . 1 . Scanalyzers . | . . . Garrison Access . | . . . Terminal Hacks 1 | . 1 . Hauler Manifests 1 | . 1 . Fabricator Hacks . | . . . Repair Station Hacks . | . . . Recycling Unit Hacks . | . . . Scanalyzer . | . . . Garrison Access Hacks . | . . . Unauthorized Hacks 8 | . 8 . Terminals 8 | . 8 . Track 1 | . 1 . Botnet 2 | . 2 . Detonate 1 | . 1 . Operators 1 | . 1 . Skim 3 | . 3 . Fabricators . | . . . Repair Stations . | . . . Recycling Units . | . . . Scanalyzers . | . . . Garrison Access . | . . . Data Cores Recovered . | . . . Used . | . . . Hacking Detections 5 | . 5 . Full Trace Events . | . . . Feedback Events . | . . . Feedback Blocked . | . . . Robot Schematics Acquired . | . . . Robots Built . | . . . Authchips . | . . . Time . | . . . Total Robot Build Rating . | . . . Part Schematics Acquired . | . . . Parts Built . | . . . Authchips . | . . . Time . | . . . Total Part Build Rating . | . . . Parts Repaired . | . . . Time . | . . . Parts Recycled . | . . . Recycled Matter . | . . . Retrieved Matter . | . . . Retrieved Components . | . . . Parts Scanalyzed . | . . . Part Schematics Acquired . | . . . Parts Damaged . | . . . Bothacking | -11 -10 -10 ------------ Run | Yrd Mat Sub Used RIF Installer . | . . . Robots Hacked . | . . . Non-combat . | . . . Combat . | . . . Robot Hacks Applied . | . . . Relay Couplers Released . | . . . Fabnet Peak Effective % . | . . . Robots Rewired 1 | . . 1 Allies Hacked . | . . . Hacks Repelled . | . . . Allies | -11 -10 -10 -------- Run | Yrd Mat Sub Total Allies 1 | . . 1 Largest Group 1 | . . 1 Highest-Rated Group 19 | . . 19 Highest-Rated Ally 19 | . . 19 Total Orders . | . . . Ally Attacks 9 | . . 9 Total Damage 122 | . . 122 Kills 1 | . . 1 Allies Corrupted . | . . . Allies Melted . | . . . Intel | -11 -10 -10 ------- Run | Yrd Mat Sub Robot Analysis Total . | . . . Derelict Logs Recovered . | . . . Drone Launches . | . . . Drone Recoveries . | . . . Exploration | -11 -10 -10 ------------- Run | Yrd Mat Sub Turns Passed 1925 | 176 562 1187 Spaces Moved 1097 | 76 301 720 Core 3 | 3 . . Treads 578 | 73 301 204 Legs . | . . . Wheels 516 | . . 516 Hover . | . . . Flight . | . . . Fastest Speed 50 | 50 160 110 Average Speed 138 | 155 160 127 Slowest Speed 240 | 160 160 240 Overloaded Moves . | . . . Propulsion Burnouts . | . . . Robots Hopped . | . . . Cave-ins Triggered . | . . . Exploration Rate (%) 42 | 4 66 56 Regions Visited 2 Branch Regions 1 Pre-discovered Areas . | . . . Known Exits Taken . | . . . Unknown Exits Taken 2 | 1 1 . Scrap Searched 9 | . . 9 Spaces Dug 2 | . . 2 Terrain Destroyed 103 | . 74 29 Melee . | . . . Projectile 29 | . . 29 AOE 74 | . 74 . Terrain Rammed . | . . . Walls Destroyed . | . . . Machines Disabled . | . . . Actions | -11 -10 -10 --------- Run | Yrd Mat Sub Total 1320 | 114 354 852 Wait 79 | 20 16 43 Move 1095 | 75 300 720 Hop . | . . . Pick Up 23 | 3 7 13 Fast Attach 14 | 7 3 4 Attach 4 | . . 4 Detach 1 | . 1 . Swap 4 | . 2 2 Drop 11 | . 7 4 Fire 87 | 9 18 60 Melee . | . . . Ram . | . . . Kick . | . . . Crush . | . . . Escape Stasis . | . . . Rewire 2 | . . 2 Trap . | . . . Miscellaneous . | . . . Route ------- -11/Scrapyard -10/Materials (discovered 4 exits: [*Mat] / [*Min x2] / [*Sub]) -10/Subcaves (discovered 1 exit: [*Mat]) History --------- Turn | Location | Event 6 | -11/Scrapyard | Discovered new exit (range 16) 177 | -11/Scrapyard | Entered Materials 316 | -10/Materials | Build established: Mutant 316 | -10/Materials | Discovered new exit (range 16) 416 | -10/Materials | Discovered new exit (range 16) 469 | -10/Materials | Discovered new exit (range 16) 603 | -10/Materials | Discovered new exit (range 13) 739 | -10/Materials | Entered Subcaves 1064 | -10/Subcaves | Discovered new exit (range 7) 1106 | -10/Subcaves | Disturbed a concealed Subdweller 1266 | -10/Subcaves | A swath of the cavern ceiling suddenly collapsed 1354 | -10/Subcaves | Ambushed by Subdweller buried in earth 1386 | -10/Subcaves | Core integrity fell below 50% 1387 | -10/Subcaves | Ambushed by Subdweller buried in earth 1416 | -10/Subcaves | Lost 4 parts (1n1u2w) 1474 | -10/Subcaves | Shifting Twisted Machinery released Slug Cannon 1529 | -10/Subcaves | Shifting Twisted Machinery released Sub. Beam Cannon 1532 | -10/Subcaves | Shifting Twisted Machinery released Hvy. Riot Gun 1576 | -10/Subcaves | Core integrity fell below 20% 1628 | -10/Subcaves | Shifting Twisted Machinery released Piercing Trap 1868 | -10/Subcaves | Build established: Derelict-Mutant 1879 | -10/Subcaves | Shifting Twisted Machinery released Riot Gun 1926 | -10/Subcaves | Destroyed by 43-KJ4(R) with Subdweller Beam Cannon Last Messages --------------- 01601_ Acquired 12 matter. 01602_ Acquired 5 matter. 01605_ Acquired 13 matter. 01609_ VA-21V(O) collects matter. 01621_ System corrupted: Heat flow error (+268). 01621_ VA-21V(O) collects matter. Piercing Trap falls loose from the Twisted Machinery. 01649_ VA-21V(O) puts together Battle Rifle. 01693_ Acquired 3 matter. 01712_ System corrupted: IFF burst signal emitted. 01813_ Sub. Power Source shoots sparks and powers down. 01834_ Slug penetrates Earth. 01834_ Slug penetrates Wall. 01837_ Slug penetrates Earth. 01854_ NQQ4MP,D HL5JPYNH=S0=TLBIZM3JJE,X Riot Gun falls loose from the Twisted Machinery. 01923_ P2-4LJ(R) destroyed. Map ----- +----------------------------------------------------+ | ?????????????????????????????????????????????????? | | ?????????????????????????????????????????????????? | | ?????????????????????????????????????????????????? | | ?????????????????????????????????????????????????? | | ?????????????????????????????????????????????????? | | ?????????????????????????????????????????????????? | | ?????????????????????????????????????????????????? | | ?????????????????????????????????????????????????? | | ?????????????????????????????????????????????????? | | ?????????????????????????????????????????????????? | | ?????????????????????????????????????????????????? | | #????????????????????????????????????????????????? | | #???????????????????????????????????????????????? | | #???????????????????????????????????????????????? | | #???????????????????????????????????????????????? | | #????????????????????????"??????????????????????? | | #????????????????????????"???"""#???????????????? | | #??##???????????????????? ??" ????????????????? | | #?# #????????????????????""" ?????????????????? | | ## #????????????????#####%""R ??????????????????? | | #"######??????????### ##;&"" ???????????????????? | | ""# ##????????## !&%#""#???????????????????? | | ## ##??????## &&;R ##??????????????????? | | ##? ######?# [ ???????????????????? | | ##??# ## #?# #????????????????????? | | #??# #??# @ #####?????????????????? | | ##??# #??# ### # #?????????????????? | | ##?# ### #### #?????????????????? | | ### ### ##????????????????? | | ## ## # ## #????????????????? | | ### ### ##????????????????? | | ## ####?# ##### #????????????????? | | #### ##???##??# # ##????????????????? | | ##?## ######## # "#????????????????? | | # #?## ## # #????????????????? | | # ##?# ## #????????????????? | | #??# ## ### ##????????????????? | | #?######## ### ### #????????????????? | | ## #????????# #?## ## #????????????????? | | #### #???????# #??## ## ##????????????????? | | ###??? ????? ???## #????????????????? | | #### #?? """ ???## #????????????????? | | #?? "[" ????## ##????????????????? | | ### #? """##????#####?????????????????? | | ##??# #????????????????????????????? | | ? ##???? ?????????????????????????????? | | ?? #????? ?????????????????????????????? | | ??? ????? ## ???????????????????????????????? | | ???? ??????? ####???????????????????????????????? | | ????? ??????## #???????????????????????????????? | +----------------------------------------------------+ Best States ------------- Heat Dissipation 25 Energy Generation 15 Energy Capacity 250 Matter Stores 300 Matter Capacity 300 Sight Range 16 Terrain Scan Range 16 Terrain Scan Density 10 Armor Coverage 150 Evasion (%) 40 Recoil Reduction 2 Item Schematics ----------------- None Robot Schematics ------------------ None Fabricated ------------ Nothing Alien Tech Used ----------------- None Achievements -------------- None Challenges ------------ None Game ------ Seed SpreadGlidesysShockpuncher Manual? 0 Play Time 00:19:38 Cumulative 332.7 hours Start 2024.09.06 @ 16:28:12 End 2024.09.06 @ 16:44:43 Sessions 1 Manual Loads 0 Difficulty Rogue Special Mode None Game No. 336 Rogue 331 Adventurer 5 Explorer 0 Win Type - Total 5 Types 4/0/0/1/0/0/0/0/0 Lore% 76 Gallery% 82 Achievement% 67 Wizard Run 0 Options --------- Layout 1 ASCII 0 Keyboard 0 Movement Mouse Keybinds 0 Fullscreen 1 Font 24/Terminus Map View 50x35 Zoom Use 0% Tactical HUD 1 Map Filters NONE Filters NONE Steam 1 RUN: 8a61c88c-f9ab-4224-b60d-a13ed2d34bd0